[Event "Titled Tuesday Blitz August 24 2021"]
[White "Kowalczyk, Pawel"]
[Black "Ibrahimli, Murad"]
[WhiteFideId "1130641"]
[BlackFideId "13410229"]
[WhiteElo "2325"]
[BlackElo "2109"]
[Result "1-0"]
[Round "11"]
[TimeControl "180+1"]
[Date "2021.08.24"]
[WhiteClock "0:01:32"]
[BlackClock "0:00:01"]

1. a3 {[%clk 0:03:00]}  g6 {[%clk 0:02:58]} 2. b4 {[%clk 0:03:00]}  Bg7 {[%clk 0:02:58]} 3. d4 {[%clk 0:03:00]}  d5 {[%clk 0:02:53]} 4. Nf3 {[%clk 0:03:00]}  Nf6 {[%clk 0:02:52]} 5. c4 {[%clk 0:03:00]}  c6 {[%clk 0:02:47]} 6. cxd5 {[%clk 0:02:57]}  cxd5 {[%clk 0:02:46]} 7. Bf4 {[%clk 0:02:56]}  O-O {[%clk 0:02:46]} 8. e3 {[%clk 0:02:57]}  Bf5 {[%clk 0:02:46]} 9. Nbd2 {[%clk 0:02:56]}  Nbd7 {[%clk 0:02:46]} 10. Nh4 {[%clk 0:02:54]}  Be6 {[%clk 0:02:45]} 11. Bd3 {[%clk 0:02:52]}  a5 {[%clk 0:02:38]} 12. O-O {[%clk 0:02:47]}  axb4 {[%clk 0:02:26]} 13. axb4 {[%clk 0:02:48]}  Rxa1 {[%clk 0:02:26]} 14. Qxa1 {[%clk 0:02:48]}  Qb6 {[%clk 0:02:16]} 15. b5 {[%clk 0:02:48]}  Nh5 {[%clk 0:02:06]} 16. Bg3 {[%clk 0:02:44]}  Nxg3 {[%clk 0:02:05]} 17. hxg3 {[%clk 0:02:45]}  f6 {[%clk 0:01:59]} 18. Rc1 {[%clk 0:02:44]}  Bf7 {[%clk 0:01:58]} 19. Nb3 {[%clk 0:02:43]}  e5 {[%clk 0:01:58]} 20. Qa5 {[%clk 0:02:41]}  e4 {[%clk 0:01:32]} 21. Be2 {[%clk 0:02:37]}  Qe6 {[%clk 0:01:17]} 22. g4 {[%clk 0:02:33]}  Rb8 {[%clk 0:00:38]} 23. Qc7 {[%clk 0:02:29]}  b6 {[%clk 0:00:28]} 24. Rc6 {[%clk 0:02:27]}  Qe8 {[%clk 0:00:28]} 25. Rd6 {[%clk 0:02:15]}  Be6 {[%clk 0:00:28]} 26. f4 {[%clk 0:02:05]}  exf3 {[%clk 0:00:24]} 27. Bxf3 {[%clk 0:01:58]}  Bf8 {[%clk 0:00:24]} 28. Rc6 {[%clk 0:01:56]}  Bf7 {[%clk 0:00:22]} 29. Kf2 {[%clk 0:01:53]}  Bh6 {[%clk 0:00:22]} 30. Rc3 {[%clk 0:01:50]}  Ra8 {[%clk 0:00:21]} 31. Nc1 {[%clk 0:01:47]}  Bg5 {[%clk 0:00:18]} 32. g3 {[%clk 0:01:47]}  Ra1 {[%clk 0:00:15]} 33. Ne2 {[%clk 0:01:43]}  Rb1 {[%clk 0:00:11]} 34. Qc6 {[%clk 0:01:37]}  Qe6 {[%clk 0:00:08]} 35. Ng2 {[%clk 0:01:35]}  Qe7 {[%clk 0:00:03]} 36. Ngf4 {[%clk 0:01:35]}  Qb4 {[%clk 0:00:01]} 37. Qxd7 {[%clk 0:01:32]} 1-0


[Site "https://www.chess.com"]

[Event "Titled Tuesday Blitz August 24 2021"]
[White "Krysa, Leandro"]
[Black "Helin, Mikael"]
[WhiteFideId "116807"]
[BlackFideId "1703838"]
[WhiteElo "2490"]
[BlackElo "1893"]
[Result "1-0"]
[Round "11"]
[TimeControl "180+1"]
[Date "2021.08.24"]
[WhiteClock "0:02:15"]
[BlackClock "0:01:28"]

1. e4 {[%clk 0:03:00]}  d6 {[%clk 0:02:57]} 2. d4 {[%clk 0:03:00]}  Nf6 {[%clk 0:02:57]} 3. Nc3 {[%clk 0:03:00]}  Nbd7 {[%clk 0:02:56]} 4. g4 {[%clk 0:02:59]}  d5 {[%clk 0:02:55]} 5. e5 {[%clk 0:02:56]}  Ne4 {[%clk 0:02:52]} 6. Nxd5 {[%clk 0:02:54]}  c6 {[%clk 0:02:44]} 7. Ne3 {[%clk 0:02:51]}  Nb6 {[%clk 0:02:42]} 8. Bg2 {[%clk 0:02:49]}  f5 {[%clk 0:02:40]} 9. gxf5 {[%clk 0:02:49]}  Ng5 {[%clk 0:02:36]} 10. Qh5+ {[%clk 0:02:47]}  Nf7 {[%clk 0:02:20]} 11. e6 {[%clk 0:02:44]}  g6 {[%clk 0:02:18]} 12. exf7+ {[%clk 0:02:42]}  Kd7 {[%clk 0:02:12]} 13. fxg6 {[%clk 0:02:41]}  Kc7 {[%clk 0:02:09]} 14. Qe5+ {[%clk 0:02:35]}  Qd6 {[%clk 0:02:07]} 15. Qxh8 {[%clk 0:02:34]}  hxg6 {[%clk 0:02:04]} 16. Qxf8 {[%clk 0:02:33]}  Nd5 {[%clk 0:01:57]} 17. Bxd5 {[%clk 0:02:29]}  cxd5 {[%clk 0:01:55]} 18. Nf3 {[%clk 0:02:23]}  b6 {[%clk 0:01:53]} 19. Ne5 {[%clk 0:02:21]}  Qb4+ {[%clk 0:01:33]} 20. c3 {[%clk 0:02:19]}  Qb5 {[%clk 0:01:30]} 21. Qxe7+ {[%clk 0:02:16]}  Kb8 {[%clk 0:01:28]} 22. f8=Q {[%clk 0:02:15]} 1-0


[Site "https://www.chess.com"]

[Event "Titled Tuesday Blitz August 24 2021"]
[White "Laurusas, Tomas"]
[Black "Baches Garcia, Guillermo"]
[WhiteFideId "12803731"]
[BlackFideId "2209764"]
[WhiteElo "2542"]
[BlackElo "2502"]
[Result "0-1"]
[Round "11"]
[TimeControl "180+1"]
[Date "2021.08.24"]
[WhiteClock "0:00:20"]
[BlackClock "0:00:12"]

1. d4 {[%clk 0:03:00]}  Nf6 {[%clk 0:02:59]} 2. c4 {[%clk 0:02:58]}  e6 {[%clk 0:03:00]} 3. Nc3 {[%clk 0:02:58]}  Bb4 {[%clk 0:02:59]} 4. e3 {[%clk 0:02:58]}  O-O {[%clk 0:02:58]} 5. Bd2 {[%clk 0:02:58]}  d5 {[%clk 0:02:54]} 6. Rc1 {[%clk 0:02:53]}  b6 {[%clk 0:02:52]} 7. cxd5 {[%clk 0:02:52]}  exd5 {[%clk 0:02:51]} 8. Nf3 {[%clk 0:02:51]}  Re8 {[%clk 0:02:47]} 9. Be2 {[%clk 0:02:49]}  Bb7 {[%clk 0:02:42]} 10. O-O {[%clk 0:02:47]}  Bf8 {[%clk 0:02:37]} 11. Ne5 {[%clk 0:02:38]}  c5 {[%clk 0:02:37]} 12. Bb5 {[%clk 0:02:29]}  Re6 {[%clk 0:02:28]} 13. f4 {[%clk 0:02:21]}  Nc6 {[%clk 0:02:25]} 14. Kh1 {[%clk 0:02:11]}  cxd4 {[%clk 0:02:15]} 15. Bxc6 {[%clk 0:02:07]}  Bxc6 {[%clk 0:02:07]} 16. exd4 {[%clk 0:02:07]}  Bb7 {[%clk 0:01:52]} 17. f5 {[%clk 0:02:06]}  Re8 {[%clk 0:01:44]} 18. Bg5 {[%clk 0:01:57]}  Be7 {[%clk 0:01:29]} 19. Nb5 {[%clk 0:01:46]}  Rc8 {[%clk 0:01:07]} 20. Nxa7 {[%clk 0:01:44]}  Rxc1 {[%clk 0:01:07]} 21. Qxc1 {[%clk 0:01:45]}  Ne4 {[%clk 0:01:03]} 22. Bxe7 {[%clk 0:01:13]}  Qxe7 {[%clk 0:00:58]} 23. Nb5 {[%clk 0:01:13]}  Qh4 {[%clk 0:00:49]} 24. Kg1 {[%clk 0:01:10]}  Ba6 {[%clk 0:00:42]} 25. Qc6 {[%clk 0:01:04]}  Bxb5 {[%clk 0:00:35]} 26. Qxd5 {[%clk 0:00:43]}  Ng5 {[%clk 0:00:18]} 27. f6 {[%clk 0:00:29]}  Bxf1 {[%clk 0:00:16]} 28. Qd7 {[%clk 0:00:24]}  Rf8 {[%clk 0:00:15]} 29. fxg7 {[%clk 0:00:23]}  Kxg7 {[%clk 0:00:15]} 30. Kxf1 {[%clk 0:00:21]}  Qf4+ {[%clk 0:00:15]} 31. Ke2 {[%clk 0:00:20]}  Qe4+ {[%clk 0:00:14]} 32. Kd2 {[%clk 0:00:20]}  Ne6 {[%clk 0:00:14]} 33. Nf3 {[%clk 0:00:20]}  Rd8 {[%clk 0:00:13]} 34. Qe7 {[%clk 0:00:20]}  Rxd4+ {[%clk 0:00:13]} 35. Nxd4 {[%clk 0:00:19]}  Qxd4+ {[%clk 0:00:13]} 36. Kc2 {[%clk 0:00:20]}  Qc5+ {[%clk 0:00:13]} 37. Kb1 {[%clk 0:00:20]}  Qxe7 {[%clk 0:00:12]} 0-1


[Site "https://www.chess.com"]

[Event "Titled Tuesday Blitz August 24 2021"]
[White "Lazavik, Denis"]
[Black "Krivonosov, Oleg"]
[WhiteFideId "13515110"]
[BlackFideId "11600349"]
[WhiteElo "2436"]
[BlackElo "2469"]
[Result "0-1"]
[Round "11"]
[TimeControl "180+1"]
[Date "2021.08.24"]
[WhiteClock "0:00:02"]
[BlackClock "0:00:11"]

1. d4 {[%clk 0:03:00]}  d5 {[%clk 0:02:59]} 2. c4 {[%clk 0:03:01]}  e6 {[%clk 0:02:58]} 3. Nc3 {[%clk 0:03:01]}  Be7 {[%clk 0:02:57]} 4. Nf3 {[%clk 0:02:58]}  Nf6 {[%clk 0:02:57]} 5. Bg5 {[%clk 0:02:57]}  Nbd7 {[%clk 0:02:55]} 6. e3 {[%clk 0:02:56]}  h6 {[%clk 0:02:54]} 7. Bh4 {[%clk 0:02:55]}  O-O {[%clk 0:02:53]} 8. Rc1 {[%clk 0:02:55]}  c5 {[%clk 0:02:52]} 9. dxc5 {[%clk 0:02:52]}  Nxc5 {[%clk 0:02:51]} 10. cxd5 {[%clk 0:02:51]}  g5 {[%clk 0:02:47]} 11. Bg3 {[%clk 0:02:51]}  Nxd5 {[%clk 0:02:46]} 12. Nxd5 {[%clk 0:02:52]}  Qxd5 {[%clk 0:02:45]} 13. Qxd5 {[%clk 0:02:52]}  exd5 {[%clk 0:02:46]} 14. Be2 {[%clk 0:02:52]}  Bd7 {[%clk 0:02:45]} 15. O-O {[%clk 0:02:49]}  Rac8 {[%clk 0:02:44]} 16. Rfd1 {[%clk 0:02:47]}  Be6 {[%clk 0:02:44]} 17. Nd4 {[%clk 0:02:45]}  Ne4 {[%clk 0:02:43]} 18. Be5 {[%clk 0:02:44]}  Bf6 {[%clk 0:02:35]} 19. Bxf6 {[%clk 0:02:41]}  Nxf6 {[%clk 0:02:34]} 20. f3 {[%clk 0:02:40]}  a6 {[%clk 0:02:32]} 21. Kf2 {[%clk 0:02:39]}  Rfe8 {[%clk 0:02:29]} 22. Bd3 {[%clk 0:02:28]}  Kf8 {[%clk 0:02:26]} 23. Ke2 {[%clk 0:02:24]}  Ke7 {[%clk 0:02:24]} 24. Kd2 {[%clk 0:02:23]}  Nd7 {[%clk 0:02:18]} 25. Rxc8 {[%clk 0:02:06]}  Rxc8 {[%clk 0:02:17]} 26. b3 {[%clk 0:02:05]}  Ne5 {[%clk 0:02:12]} 27. Bb1 {[%clk 0:01:41]}  Nc6 {[%clk 0:02:11]} 28. Ne2 {[%clk 0:01:39]}  Rd8 {[%clk 0:01:58]} 29. Kc3 {[%clk 0:01:39]}  Rc8 {[%clk 0:01:55]} 30. Kb2 {[%clk 0:01:38]}  Rd8 {[%clk 0:01:54]} 31. Nd4 {[%clk 0:01:23]}  Nxd4 {[%clk 0:01:53]} 32. Rxd4 {[%clk 0:01:24]}  a5 {[%clk 0:01:45]} 33. b4 {[%clk 0:01:10]}  b6 {[%clk 0:01:44]} 34. Bd3 {[%clk 0:01:07]}  Rb8 {[%clk 0:01:40]} 35. Kc3 {[%clk 0:00:51]}  Rc8+ {[%clk 0:01:37]} 36. Kd2 {[%clk 0:00:45]}  Ra8 {[%clk 0:01:35]} 37. b5 {[%clk 0:00:33]}  Rc8 {[%clk 0:01:32]} 38. a4 {[%clk 0:00:32]}  Rc5 {[%clk 0:01:31]} 39. Bc2 {[%clk 0:00:32]}  Kf6 {[%clk 0:01:26]} 40. Bb3 {[%clk 0:00:31]}  Ke7 {[%clk 0:01:26]} 41. h4 {[%clk 0:00:22]}  Kf6 {[%clk 0:01:25]} 42. hxg5+ {[%clk 0:00:18]}  hxg5 {[%clk 0:01:25]} 43. f4 {[%clk 0:00:14]}  Kf5 {[%clk 0:01:14]} 44. Bc2+ {[%clk 0:00:13]}  Kf6 {[%clk 0:01:13]} 45. Bd3 {[%clk 0:00:13]}  Rc8 {[%clk 0:01:10]} 46. Be2 {[%clk 0:00:09]}  Rc5 {[%clk 0:01:07]} 47. g4 {[%clk 0:00:08]}  Bc8 {[%clk 0:00:59]} 48. Bf3 {[%clk 0:00:07]}  Bb7 {[%clk 0:00:59]} 49. Bg2 {[%clk 0:00:06]}  Kg6 {[%clk 0:00:54]} 50. Bf1 {[%clk 0:00:05]}  Kf6 {[%clk 0:00:52]} 51. Be2 {[%clk 0:00:05]}  Kg6 {[%clk 0:00:50]} 52. Bd3+ {[%clk 0:00:06]}  Kf6 {[%clk 0:00:49]} 53. Bf5 {[%clk 0:00:06]}  Ba8 {[%clk 0:00:43]} 54. Rd3 {[%clk 0:00:06]}  Bb7 {[%clk 0:00:41]} 55. Rc3 {[%clk 0:00:06]}  gxf4 {[%clk 0:00:31]} 56. exf4 {[%clk 0:00:06]}  d4 {[%clk 0:00:31]} 57. Rxc5 {[%clk 0:00:05]}  bxc5 {[%clk 0:00:31]} 58. Bd3 {[%clk 0:00:06]}  Bd5 {[%clk 0:00:30]} 59. b6 {[%clk 0:00:06]}  Ke7 {[%clk 0:00:29]} 60. g5 {[%clk 0:00:05]}  Kd6 {[%clk 0:00:28]} 61. f5 {[%clk 0:00:03]}  Kc6 {[%clk 0:00:27]} 62. g6 {[%clk 0:00:03]}  fxg6 {[%clk 0:00:27]} 63. fxg6 {[%clk 0:00:03]}  Kxb6 {[%clk 0:00:26]} 64. g7 {[%clk 0:00:04]}  Bg8 {[%clk 0:00:26]} 65. Kc2 {[%clk 0:00:02]}  Kc7 {[%clk 0:00:25]} 66. Be4 {[%clk 0:00:02]}  Kd6 {[%clk 0:00:25]} 67. Kd3 {[%clk 0:00:02]}  Ke5 {[%clk 0:00:23]} 68. Bc6 {[%clk 0:00:03]}  c4+ {[%clk 0:00:22]} 69. Kd2 {[%clk 0:00:03]}  c3+ {[%clk 0:00:22]} 70. Kd3 {[%clk 0:00:03]}  Bh7+ {[%clk 0:00:22]} 71. Ke2 {[%clk 0:00:04]}  d3+ {[%clk 0:00:21]} 72. Ke3 {[%clk 0:00:04]}  d2 {[%clk 0:00:20]} 73. Bf3 {[%clk 0:00:04]}  Kf6 {[%clk 0:00:14]} 74. Bd1 {[%clk 0:00:04]}  Kxg7 {[%clk 0:00:13]} 75. Bb3 {[%clk 0:00:03]}  Kf6 {[%clk 0:00:13]} 76. Kd4 {[%clk 0:00:02]}  c2 {[%clk 0:00:11]} 0-1


[Site "https://www.chess.com"]

[Event "Titled Tuesday Blitz August 24 2021"]
[White "Makhnev, Denis"]
[Black "Maltsevskaya, Aleksandra"]
[WhiteFideId "13707647"]
[BlackFideId "24174041"]
[WhiteElo "2537"]
[BlackElo "2225"]
[Result "0-1"]
[Round "11"]
[TimeControl "180+1"]
[Date "2021.08.24"]
[WhiteClock "0:00:13"]
[BlackClock "0:00:08"]

1. Nf3 {[%clk 0:03:00]}  Nf6 {[%clk 0:02:59]} 2. c4 {[%clk 0:03:00]}  g6 {[%clk 0:02:59]} 3. Nc3 {[%clk 0:03:00]}  Bg7 {[%clk 0:03:00]} 4. g3 {[%clk 0:03:00]}  d6 {[%clk 0:03:00]} 5. Bg2 {[%clk 0:03:00]}  O-O {[%clk 0:03:01]} 6. O-O {[%clk 0:03:00]}  Nbd7 {[%clk 0:03:02]} 7. Rb1 {[%clk 0:03:00]}  e5 {[%clk 0:03:03]} 8. b4 {[%clk 0:02:59]}  a5 {[%clk 0:03:00]} 9. a3 {[%clk 0:02:58]}  Re8 {[%clk 0:02:53]} 10. e4 {[%clk 0:02:48]}  Nb6 {[%clk 0:02:48]} 11. d3 {[%clk 0:02:47]}  axb4 {[%clk 0:02:48]} 12. axb4 {[%clk 0:02:47]}  Bg4 {[%clk 0:02:48]} 13. h3 {[%clk 0:02:46]}  Bxf3 {[%clk 0:02:49]} 14. Bxf3 {[%clk 0:02:46]}  Nfd7 {[%clk 0:02:47]} 15. Be3 {[%clk 0:02:43]}  Nc8 {[%clk 0:02:41]} 16. Ra1 {[%clk 0:02:41]}  Ne7 {[%clk 0:02:39]} 17. Qb3 {[%clk 0:02:37]}  Nf8 {[%clk 0:02:36]} 18. Rxa8 {[%clk 0:02:33]}  Qxa8 {[%clk 0:02:36]} 19. Nd5 {[%clk 0:02:29]}  Ne6 {[%clk 0:02:36]} 20. Qb2 {[%clk 0:02:25]}  c6 {[%clk 0:02:29]} 21. Nxe7+ {[%clk 0:02:19]}  Rxe7 {[%clk 0:02:30]} 22. Ra1 {[%clk 0:02:19]}  Qf8 {[%clk 0:02:29]} 23. Qa3 {[%clk 0:02:10]}  Re8 {[%clk 0:02:26]} 24. Qa7 {[%clk 0:02:09]}  Qe7 {[%clk 0:02:25]} 25. Qb6 {[%clk 0:02:05]}  f5 {[%clk 0:02:21]} 26. exf5 {[%clk 0:02:00]}  gxf5 {[%clk 0:02:20]} 27. Ra7 {[%clk 0:01:57]}  f4 {[%clk 0:02:13]} 28. Rxb7 {[%clk 0:01:52]}  Qg5 {[%clk 0:02:11]} 29. Qxc6 {[%clk 0:01:47]}  Rf8 {[%clk 0:02:02]} 30. Bd2 {[%clk 0:01:38]}  Nd4 {[%clk 0:01:54]} 31. Qd5+ {[%clk 0:01:36]}  Kh8 {[%clk 0:01:54]} 32. Kg2 {[%clk 0:01:30]}  Qg6 {[%clk 0:01:37]} 33. Be4 {[%clk 0:01:27]}  Qf6 {[%clk 0:01:30]} 34. g4 {[%clk 0:01:18]}  f3+ {[%clk 0:01:30]} 35. Kh2 {[%clk 0:01:17]}  Qh4 {[%clk 0:01:17]} 36. Be3 {[%clk 0:01:15]}  Nc2 {[%clk 0:01:13]} 37. Rxg7 {[%clk 0:00:36]}  Nxe3 {[%clk 0:00:55]} 38. Rxh7+ {[%clk 0:00:22]}  Qxh7 {[%clk 0:00:54]} 39. fxe3 {[%clk 0:00:22]}  f2 {[%clk 0:00:25]} 40. Bxh7 {[%clk 0:00:18]}  Kxh7 {[%clk 0:00:23]} 41. Qe4+ {[%clk 0:00:17]}  Kg7 {[%clk 0:00:15]} 42. Qb7+ {[%clk 0:00:16]}  Kh8 {[%clk 0:00:14]} 43. Qe7 {[%clk 0:00:14]}  f1=Q {[%clk 0:00:14]} 44. Qh4+ {[%clk 0:00:14]}  Kg7 {[%clk 0:00:15]} 45. Qg5+ {[%clk 0:00:15]}  Kf7 {[%clk 0:00:15]} 46. Kg3 {[%clk 0:00:13]}  Qe1+ {[%clk 0:00:09]} 47. Kf3 {[%clk 0:00:13]}  Ke6+ {[%clk 0:00:08]} 0-1


[Site "https://www.chess.com"]

[Event "Titled Tuesday Blitz August 24 2021"]
[White "Maksimovic, Bojan"]
[Black "Demchenko, Anton"]
[WhiteFideId "14408120"]
[BlackFideId "4160258"]
[WhiteElo "2439"]
[BlackElo "2583"]
[Result "1/2-1/2"]
[Round "11"]
[TimeControl "180+1"]
[Date "2021.08.24"]
[WhiteClock "0:00:11"]
[BlackClock "0:00:04"]

1. e4 {[%clk 0:03:00]}  e5 {[%clk 0:02:57]} 2. Nf3 {[%clk 0:02:59]}  Nc6 {[%clk 0:02:58]} 3. Bb5 {[%clk 0:02:58]}  a6 {[%clk 0:02:57]} 4. Ba4 {[%clk 0:02:59]}  Nge7 {[%clk 0:02:57]} 5. Nc3 {[%clk 0:02:55]}  d6 {[%clk 0:02:56]} 6. d4 {[%clk 0:02:46]}  b5 {[%clk 0:02:55]} 7. Bb3 {[%clk 0:02:16]}  Nxd4 {[%clk 0:02:55]} 8. Nxd4 {[%clk 0:02:14]}  exd4 {[%clk 0:02:56]} 9. Qf3 {[%clk 0:02:00]}  Be6 {[%clk 0:02:53]} 10. Nd5 {[%clk 0:02:01]}  c6 {[%clk 0:02:44]} 11. Nf4 {[%clk 0:01:53]}  Bxb3 {[%clk 0:02:40]} 12. axb3 {[%clk 0:01:54]}  g6 {[%clk 0:02:40]} 13. h4 {[%clk 0:01:50]}  h6 {[%clk 0:02:33]} 14. b4 {[%clk 0:01:22]}  Bg7 {[%clk 0:02:30]} 15. O-O {[%clk 0:01:16]}  O-O {[%clk 0:02:27]} 16. Nd3 {[%clk 0:01:17]}  f5 {[%clk 0:02:23]} 17. h5 {[%clk 0:01:07]}  g5 {[%clk 0:02:23]} 18. exf5 {[%clk 0:01:06]}  Rxf5 {[%clk 0:02:20]} 19. Qe4 {[%clk 0:01:01]}  Qd7 {[%clk 0:02:19]} 20. Bd2 {[%clk 0:00:59]}  Nd5 {[%clk 0:02:09]} 21. Rfe1 {[%clk 0:00:54]}  Nf6 {[%clk 0:01:53]} 22. Qe6+ {[%clk 0:00:39]}  Qxe6 {[%clk 0:01:52]} 23. Rxe6 {[%clk 0:00:40]}  Bf8 {[%clk 0:01:46]} 24. f3 {[%clk 0:00:40]}  Kf7 {[%clk 0:01:38]} 25. Ree1 {[%clk 0:00:38]}  g4 {[%clk 0:01:24]} 26. fxg4 {[%clk 0:00:33]}  Nxg4 {[%clk 0:01:25]} 27. c3 {[%clk 0:00:34]}  dxc3 {[%clk 0:01:20]} 28. Bxc3 {[%clk 0:00:35]}  Rxh5 {[%clk 0:01:18]} 29. Rf1+ {[%clk 0:00:34]}  Kg8 {[%clk 0:01:17]} 30. Rae1 {[%clk 0:00:33]}  c5 {[%clk 0:00:48]} 31. Re6 {[%clk 0:00:30]}  Kh7 {[%clk 0:00:35]} 32. Rf7+ {[%clk 0:00:28]}  Kg8 {[%clk 0:00:33]} 33. Rc7 {[%clk 0:00:21]}  Rg5 {[%clk 0:00:34]} 34. Nf4 {[%clk 0:00:15]}  cxb4 {[%clk 0:00:29]} 35. Bxb4 {[%clk 0:00:16]}  d5 {[%clk 0:00:30]} 36. Bc3 {[%clk 0:00:14]}  Rd8 {[%clk 0:00:23]} 37. Nh3 {[%clk 0:00:14]}  Bd6 {[%clk 0:00:07]} 38. Nxg5 {[%clk 0:00:08]}  Bxc7 {[%clk 0:00:07]} 39. Rg6+ {[%clk 0:00:06]}  Kf8 {[%clk 0:00:07]} 40. Nh7+ {[%clk 0:00:07]}  Kf7 {[%clk 0:00:07]} 41. Rxg4 {[%clk 0:00:07]}  Bb6+ {[%clk 0:00:07]} 42. Kh2 {[%clk 0:00:07]}  d4 {[%clk 0:00:08]} 43. Bd2 {[%clk 0:00:07]}  Rd6 {[%clk 0:00:07]} 44. Rf4+ {[%clk 0:00:05]}  Kg7 {[%clk 0:00:07]} 45. Nf8 {[%clk 0:00:05]}  Bc7 {[%clk 0:00:06]} 46. Kh3 {[%clk 0:00:04]}  Rc6 {[%clk 0:00:05]} 47. Rf2 {[%clk 0:00:03]}  a5 {[%clk 0:00:05]} 48. Nd7 {[%clk 0:00:02]}  a4 {[%clk 0:00:04]} 49. Bf4 {[%clk 0:00:03]}  Bxf4 {[%clk 0:00:03]} 50. Rxf4 {[%clk 0:00:03]}  Rd6 {[%clk 0:00:04]} 51. Ne5 {[%clk 0:00:04]}  b4 {[%clk 0:00:04]} 52. Nd3 {[%clk 0:00:04]}  a3 {[%clk 0:00:05]} 53. bxa3 {[%clk 0:00:05]}  bxa3 {[%clk 0:00:06]} 54. Rf2 {[%clk 0:00:06]}  Rc6 {[%clk 0:00:06]} 55. Ra2 {[%clk 0:00:06]}  Rc3 {[%clk 0:00:07]} 56. Rd2 {[%clk 0:00:06]}  a2 {[%clk 0:00:06]} 57. Rxa2 {[%clk 0:00:07]}  Rxd3+ {[%clk 0:00:07]} 58. Kg4 {[%clk 0:00:08]}  Re3 {[%clk 0:00:05]} 59. Ra8 {[%clk 0:00:07]}  Re7 {[%clk 0:00:04]} 60. Rd8 {[%clk 0:00:08]}  Re4+ {[%clk 0:00:04]} 61. Kf5 {[%clk 0:00:08]}  Rh4 {[%clk 0:00:04]} 62. Rd7+ {[%clk 0:00:09]}  Kf8 {[%clk 0:00:04]} 63. g4 {[%clk 0:00:09]}  h5 {[%clk 0:00:03]} 64. Rxd4 {[%clk 0:00:09]}  Rxg4 {[%clk 0:00:03]} 65. Rxg4 {[%clk 0:00:10]}  hxg4 {[%clk 0:00:04]} 66. Kxg4 {[%clk 0:00:11]} 1/2-1/2


[Site "https://www.chess.com"]

[Event "Titled Tuesday Blitz August 24 2021"]
[White "Manukyan, Artyom"]
[Black "Pham, Le Thao Nguyen"]
[WhiteFideId "13305786"]
[BlackFideId "12401226"]
[WhiteElo "2034"]
[BlackElo "2286"]
[Result "1-0"]
[Round "11"]
[TimeControl "180+1"]
[Date "2021.08.24"]
[WhiteClock "0:00:52"]
[BlackClock "0:00:11"]

1. e4 {[%clk 0:03:00]}  c5 {[%clk 0:02:58]} 2. Nc3 {[%clk 0:02:58]}  e6 {[%clk 0:02:59]} 3. g3 {[%clk 0:02:59]}  a6 {[%clk 0:02:59]} 4. Bg2 {[%clk 0:03:00]}  b5 {[%clk 0:03:00]} 5. Nh3 {[%clk 0:03:00]}  Bb7 {[%clk 0:03:00]} 6. d3 {[%clk 0:03:00]}  Nc6 {[%clk 0:03:00]} 7. O-O {[%clk 0:03:01]}  Nf6 {[%clk 0:02:49]} 8. f4 {[%clk 0:03:01]}  d6 {[%clk 0:02:50]} 9. Be3 {[%clk 0:02:53]}  Be7 {[%clk 0:02:49]} 10. e5 {[%clk 0:02:53]}  Nd7 {[%clk 0:02:26]} 11. Qg4 {[%clk 0:02:36]}  g6 {[%clk 0:02:15]} 12. exd6 {[%clk 0:02:19]}  Bxd6 {[%clk 0:02:14]} 13. Rae1 {[%clk 0:02:17]}  Be7 {[%clk 0:01:47]} 14. Ng5 {[%clk 0:02:14]}  Nf6 {[%clk 0:01:37]} 15. Qd1 {[%clk 0:02:07]}  Qd7 {[%clk 0:01:34]} 16. Nce4 {[%clk 0:01:47]}  Nxe4 {[%clk 0:01:28]} 17. dxe4 {[%clk 0:01:47]}  Qxd1 {[%clk 0:01:25]} 18. Rxd1 {[%clk 0:01:47]}  h6 {[%clk 0:00:56]} 19. Nh3 {[%clk 0:01:26]}  Rd8 {[%clk 0:00:25]} 20. e5 {[%clk 0:01:19]}  Ba8 {[%clk 0:00:25]} 21. c3 {[%clk 0:01:17]}  Rd7 {[%clk 0:00:20]} 22. Nf2 {[%clk 0:01:14]}  Kd8 {[%clk 0:00:18]} 23. Ne4 {[%clk 0:01:11]}  c4 {[%clk 0:00:18]} 24. Bb6+ {[%clk 0:01:02]}  Kc8 {[%clk 0:00:18]} 25. Rxd7 {[%clk 0:01:01]}  Kxd7 {[%clk 0:00:18]} 26. Rd1+ {[%clk 0:01:02]}  Kc8 {[%clk 0:00:19]} 27. Nd6+ {[%clk 0:00:51]}  Bxd6 {[%clk 0:00:11]} 28. Rxd6 {[%clk 0:00:52]} 1-0


[Site "https://www.chess.com"]

[Event "Titled Tuesday Blitz August 24 2021"]
[White "Mogirzan, Matei-Valeriu"]
[Black "Tokman, Ariel"]
[WhiteFideId "1257455"]
[BlackFideId "117420"]
[WhiteElo "1733"]
[BlackElo "2345"]
[Result "1-0"]
[Round "11"]
[TimeControl "180+1"]
[Date "2021.08.24"]
[WhiteClock "0:00:05"]
[BlackClock "0:00:03"]

1. e4 {[%clk 0:03:00]}  c5 {[%clk 0:02:58]} 2. Nf3 {[%clk 0:03:00]}  e6 {[%clk 0:02:58]} 3. d4 {[%clk 0:03:00]}  cxd4 {[%clk 0:02:59]} 4. Nxd4 {[%clk 0:03:00]}  a6 {[%clk 0:02:59]} 5. Nc3 {[%clk 0:03:00]}  b5 {[%clk 0:02:57]} 6. a3 {[%clk 0:03:00]}  Bb7 {[%clk 0:02:56]} 7. f4 {[%clk 0:02:57]}  Bc5 {[%clk 0:02:37]} 8. Nb3 {[%clk 0:02:51]}  Ba7 {[%clk 0:02:34]} 9. Qg4 {[%clk 0:02:46]}  Nf6 {[%clk 0:02:28]} 10. Qe2 {[%clk 0:02:39]}  O-O {[%clk 0:02:23]} 11. Be3 {[%clk 0:02:35]}  Bxe3 {[%clk 0:02:17]} 12. Qxe3 {[%clk 0:02:36]}  d5 {[%clk 0:02:16]} 13. e5 {[%clk 0:02:32]}  Ng4 {[%clk 0:01:59]} 14. Qe2 {[%clk 0:02:20]}  Nh6 {[%clk 0:01:55]} 15. O-O-O {[%clk 0:02:17]}  Nd7 {[%clk 0:01:56]} 16. g4 {[%clk 0:02:13]}  Rc8 {[%clk 0:01:54]} 17. Nd4 {[%clk 0:02:09]}  Qe7 {[%clk 0:01:46]} 18. g5 {[%clk 0:02:01]}  Nf5 {[%clk 0:01:34]} 19. Nxf5 {[%clk 0:01:59]}  exf5 {[%clk 0:01:35]} 20. Nxd5 {[%clk 0:01:53]}  Bxd5 {[%clk 0:01:23]} 21. Rxd5 {[%clk 0:01:51]}  Nb6 {[%clk 0:01:24]} 22. Rd1 {[%clk 0:01:42]}  Nc4 {[%clk 0:01:20]} 23. Qf3 {[%clk 0:01:19]}  b4 {[%clk 0:01:08]} 24. axb4 {[%clk 0:00:59]}  Qxb4 {[%clk 0:01:07]} 25. Qc3 {[%clk 0:00:56]}  Qa4 {[%clk 0:00:53]} 26. b3 {[%clk 0:00:36]}  Ne3 {[%clk 0:00:31]} 27. Qxe3 {[%clk 0:00:16]}  Qa1+ {[%clk 0:00:30]} 28. Kd2 {[%clk 0:00:16]}  Rfd8+ {[%clk 0:00:18]} 29. Bd3 {[%clk 0:00:15]}  Rxc2+ {[%clk 0:00:17]} 30. Kxc2 {[%clk 0:00:07]}  Qa2+ {[%clk 0:00:18]} 31. Kc1 {[%clk 0:00:04]}  Qxb3 {[%clk 0:00:13]} 32. Qe2 {[%clk 0:00:02]}  Qa3+ {[%clk 0:00:10]} 33. Qb2 {[%clk 0:00:02]}  Qc5+ {[%clk 0:00:08]} 34. Bc2 {[%clk 0:00:02]}  Qe3+ {[%clk 0:00:08]} 35. Kb1 {[%clk 0:00:03]}  Rf8 {[%clk 0:00:08]} 36. Rd3 {[%clk 0:00:03]}  Qxf4 {[%clk 0:00:08]} 37. Rhd1 {[%clk 0:00:04]}  Qxg5 {[%clk 0:00:03]} 38. Rg3 {[%clk 0:00:04]}  Qe7 {[%clk 0:00:01]} 39. e6 {[%clk 0:00:04]}  f6 {[%clk 0:00:01]} 40. Rdg1 {[%clk 0:00:04]}  g6 {[%clk 0:00:02]} 41. Bxf5 {[%clk 0:00:04]}  Kg7 {[%clk 0:00:02]} 42. Rxg6+ {[%clk 0:00:03]}  hxg6 {[%clk 0:00:02]} 43. Rxg6+ {[%clk 0:00:04]}  Kh8 {[%clk 0:00:03]} 44. Rh6+ {[%clk 0:00:04]}  Kg7 {[%clk 0:00:03]} 45. Rh7+ {[%clk 0:00:04]}  Kg8 {[%clk 0:00:03]} 46. Rxe7 {[%clk 0:00:05]} 1-0


[Site "https://www.chess.com"]